bitfinex/quotes_SOLUSD_20241123
["timestamp","ask_amount","ask_price","bid_price","bid_amount"]
[1732385729937,11.82398037,256.45,256.38,5.16915078]
[1732385730255,11.82398037,256.45,256.38,13.02239878]
[1732385730457,11.82398037,256.47,256.38,5.16915078]
[1732385731544,11.82398037,256.49,256.41,11.82398037]
[1732385731745,11.82398037,256.49,256.42,20.0]
[1732385732663,11.82398037,256.47,256.4,20.0]
[1732385733229,11.82398037,256.51,256.43,11.82398037]
[1732385733440,11.82398037,256.51,256.44,20.0]
[1732385734135,2.5561866,256.59,256.55,125.97601963]
[1732385734340,11.82398037,256.56,256.44,20.0]
[1732385734543,2.5561866,256.59,256.44,20.0]
[1732385734725,11.82398037,256.53,256.44,20.0]
[1732385735447,11.82398037,256.51,256.43,23.776884]
[1732385735749,11.82398037,256.51,256.44,20.0]
[1732385736453,11.82398037,256.47,256.42,20.0]
[1732385736652,11.82398037,256.47,256.4,43.776884]
[1732385738439,11.82398037,256.45,256.38,24.71732725]
[1732385738634,11.82398037,256.43,256.38,20.0]
[1732385738833,11.82398037,256.43,256.36,20.43121936]
[1732385739355,11.82398037,256.49,256.46,125.97601963]
[1732385739659,11.82398037,256.49,256.36,15.26206858]
[1732385739839,11.82398037,256.4,256.36,15.26206858]
[1732385740732,11.82398037,256.4,256.37,20.0]
[1732385741136,11.82398037,256.4,256.36,0.06826858]
[1732385741337,11.82398037,256.37,256.36,0.06826858]
[1732385741947,14.38018037,256.49,256.36,0.06826858]
[1732385742155,11.82398037,256.43,256.36,0.06826858]
[1732385743131,11.82398037,256.43,256.36,20.06826858]
[1732385743328,11.82398037,256.43,256.36,0.06826858]
[1732385745150,11.82398037,256.41,256.36,0.06826858]
[1732385746560,11.82398037,256.39,256.36,0.06826858]
[1732385746869,7.57536185,256.37,256.36,0.06826858]
[1732385747335,7.57536185,256.39,256.36,0.06826858]
[1732385747534,33.776884,256.48,256.36,0.06826858]
[1732385747734,7.57536185,256.38,256.36,0.06826858]
[1732385753869,20.0,256.47,256.36,0.06826858]
[1732385754080,7.57536185,256.4,256.36,0.06826858]
[1732385754846,7.57536185,256.38,256.36,0.06826858]
[1732385756465,54.0783314,256.37,256.36,0.06826858]
[1732385756650,7.57536185,256.38,256.36,0.06826858]
[1732385758475,30.3014474,256.37,256.36,0.06826858]
[1732385758774,23.69163124,256.37,256.36,0.06826858]
[1732385759151,35.62269962,256.37,256.36,0.06826858]
[1732385759563,11.84581562,256.37,256.36,0.06826858]
[1732385760554,23.69163124,256.37,256.36,0.06826858]
[1732385760759,23.776884,256.36,256.24,15.2522]
[1732385760970,11.84581562,256.25,256.24,15.2522]
[1732385761357,11.84581562,256.27,256.24,15.2522]
[1732385761545,11.84581562,256.29,256.24,15.2522]
[1732385762851,11.84581562,256.27,256.24,15.2522]
[1732385763264,11.84581562,256.25,256.24,15.2522]
[1732385763480,11.84581562,256.27,256.24,15.2522]
[1732385764074,11.84581562,256.25,256.24,15.2522]
[1732385764267,11.84581562,256.25,256.17,11.84581562]
[1732385764467,11.84581562,256.37,256.17,11.84581562]
[1732385764468,11.84581562,256.21,256.17,15.3139]
[1732385765783,11.84581562,256.23,256.17,15.3139]
[1732385765974,11.84581562,256.25,256.17,15.3139]
[1732385767161,11.84581562,256.37,256.18,11.84581562]
[1732385767162,11.84581562,256.27,256.18,11.84581562]
[1732385767679,11.84581562,256.25,256.19,20.0]
[1732385767858,11.84581562,256.37,256.29,125.95418438]
[1732385768059,11.84581562,256.3,256.23,23.776884]
[1732385768275,16.1132,256.44,256.24,11.84581562]
[1732385768475,11.84581562,256.37,256.28,11.84581562]
[1732385769084,11.84581562,256.37,256.29,20.0]
[1732385769586,11.84581562,256.39,256.3,35.62269962]
[1732385769957,20.0,256.47,256.3,23.776884]
[1732385770159,11.84581562,256.35,256.29,20.0]
[1732385770355,11.84581562,256.35,256.27,20.0]
[1732385771375,11.84581562,256.35,256.28,11.84581562]
[1732385771581,11.84581562,256.37,256.29,20.0]
[1732385772678,11.84581562,256.35,256.29,20.0]
[1732385772989,11.84581562,256.37,256.29,20.0]
[1732385773985,11.84581562,256.35,256.29,20.0]
[1732385774285,11.84581562,256.35,256.27,20.0]
[1732385774459,11.84581562,256.35,256.28,11.84581562]
[1732385774662,11.84581562,256.37,256.28,11.84581562]
[1732385775763,11.84581562,256.39,256.3,11.84581562]
[1732385776360,11.84581562,256.41,256.33,23.776884]
[1732385776792,11.84581562,256.43,256.35,15.4118]
[1732385777086,11.84581562,256.45,256.36,35.62269962]
[1732385778186,11.84581562,256.45,256.37,20.0]
[1732385778834,11.84581562,256.43,256.37,20.0]
[1732385780105,11.84581562,256.43,256.36,20.0]
[1732385781716,11.84581562,256.46,256.38,11.84581562]
[1732385782619,11.84581562,256.48,256.4,11.84581562]
[1732385782825,11.84581562,256.46,256.38,31.84581562]
[1732385783009,6.3633,256.56,256.38,20.0]
[1732385783206,11.84581562,256.46,256.38,20.0]
[1732385783819,11.84581562,256.46,256.39,11.84581562]
[1732385784035,11.84581562,256.44,256.38,20.0]
[1732385784907,11.84581562,256.42,256.36,20.0]
[1732385785114,11.84581562,256.4,256.36,20.0]
[1732385786105,11.84581562,256.38,256.35,15.4118]
[1732385786329,11.84581562,256.36,256.31,6.1823]
[1732385786627,10.0,256.47,256.31,6.1823]
[1732385786628,11.84581562,256.34,256.31,6.1823]
[1732385788726,11.84581562,256.34,256.29,15.6073]
[1732385789026,11.84581562,256.32,256.29,15.6073]
[1732385790806,11.84581562,256.3,256.29,15.6073]
[1732385791040,11.84581562,256.3,256.22,16.5549]
[1732385791212,11.84581562,256.27,256.22,16.5549]
[1732385793130,11.84581562,256.31,256.24,11.84581562]
[1732385793422,11.84581562,256.29,256.22,28.40071562]
[1732385793639,11.84581562,256.31,256.23,20.0]
[1732385795417,11.84581562,256.29,256.22,16.5549]
[1732385795624,11.84581562,256.27,256.22,16.5549]
[1732385796105,11.84581562,256.25,256.22,16.5549]
[1732385797586,11.84581562,256.27,256.22,16.5549]
[1732385798422,11.84581562,256.36,256.22,16.5549]
[1732385798423,11.84581562,256.25,256.22,16.5549]
[1732385799206,11.84581562,256.23,256.22,16.5549]
[1732385799413,43.776884,256.35,256.27,125.95418438]
[1732385799714,23.776884,256.27,256.22,16.5549]
[1732385800013,11.84581562,256.25,256.22,16.5549]
[1732385805419,11.84581562,256.23,256.16,21.80419446]
[1732385806291,11.84581562,256.23,256.17,11.84581562]
[1732385806725,11.84581562,256.25,256.17,11.84581562]
[1732385807438,11.84581562,256.27,256.19,11.84581562]
[1732385808426,11.84581562,256.23,256.16,21.80419446]
[1732385808726,11.84581562,256.21,256.16,21.80419446]
[1732385808924,11.84581562,256.21,256.16,16.6347]
[1732385809513,11.84581562,256.21,256.13,11.84581562]
[1732385810148,11.84581562,256.19,256.12,6.1361]
[1732385810432,11.84581562,256.19,256.13,3.63898161]
[1732385810610,11.84581562,256.19,256.12,6.1361]
[1732385810806,11.84581562,256.17,256.11,20.0]
[1732385811308,11.84581562,256.17,256.1,15.8838]
[1732385811707,11.84581562,256.15,256.1,15.8838]
[1732385812205,11.84581562,256.15,256.05,7.86785278]
[1732385812206,11.84581562,256.11,256.03,15.2698]
[1732385812399,11.84581562,256.09,256.03,15.2698]
[1732385812820,11.84581562,256.12,256.04,11.84581562]
[1732385813144,23.776884,256.11,256.04,11.84581562]
[1732385813636,11.84581562,256.14,256.06,11.84581562]
[1732385814316,11.84581562,256.14,256.07,20.0]
[1732385816415,11.84581562,256.12,256.04,20.0]
[1732385816613,11.84581562,256.14,256.06,11.84581562]
[1732385817205,11.84581562,256.14,256.07,20.0]
[1732385817813,11.84581562,256.18,256.1,11.84581562]
[1732385818020,11.84581562,256.2,256.11,20.0]
[1732385818836,11.84581562,256.18,256.11,20.0]
[1732385820309,11.84581562,256.18,256.1,31.84581562]
[1732385820535,11.84581562,256.22,256.13,16.5471]
[1732385820832,11.84581562,256.22,256.14,20.0]
[1732385821939,11.84581562,256.26,256.18,11.84581562]
[1732385822440,11.84581562,256.26,256.19,20.0]
[1732385822939,11.84581562,256.26,256.17,20.0]
[1732385823642,11.84581562,256.26,256.16,11.84581562]
[1732385823821,11.84581562,256.26,256.18,11.84581562]
[1732385824025,11.84581562,256.26,256.19,20.0]
[1732385825934,11.84581562,256.24,256.17,20.0]
[1732385827540,11.84581562,256.22,256.14,31.84581562]
[1732385829734,11.84581562,256.2,256.13,16.5471]
[1732385830045,11.84581562,256.18,256.13,16.5471]
[1732385830353,11.84581562,256.2,256.13,16.5471]
[1732385830928,11.84581562,256.2,256.14,20.0]
[1732385832839,11.84581562,256.25,256.17,20.0]
[1732385834023,11.84581562,256.27,256.19,20.0]
[1732385834831,11.84581562,256.25,256.19,20.0]
[1732385835919,11.84581562,256.31,256.23,20.0]
[1732385836147,11.84581562,256.33,256.27,20.0]
[1732385836355,11.84581562,256.35,256.27,20.0]
[1732385836531,8.7513,256.49,256.31,11.84581562]
[1732385836726,11.84581562,256.39,256.31,11.84581562]
[1732385836928,11.84581562,256.37,256.3,20.0]
[1732385837660,11.84581562,256.35,256.28,20.0]
[1732385839436,11.84581562,256.3,256.24,20.0]
[1732385839643,23.776884,256.43,256.35,125.95418438]
[1732385839952,23.776884,256.43,256.24,20.0]
[1732385840122,23.776884,256.45,256.24,20.0]
[1732385840939,11.84581562,256.33,256.26,20.0]
[1732385841452,11.84581562,256.35,256.27,11.84581562]
[1732385841653,11.84581562,256.37,256.28,20.0]
[1732385843151,11.84581562,256.35,256.28,20.0]
[1732385843456,11.84581562,256.33,256.26,20.0]
[1732385843663,11.84581562,256.33,256.25,11.84581562]
[1732385843953,11.84581562,256.33,256.26,20.0]
[1732385844151,11.84581562,256.35,256.26,20.0]
[1732385844547,11.84581562,256.33,256.25,17.01531008]
[1732385844946,11.84581562,256.31,256.25,5.16949446]
[1732385845258,11.84581562,256.29,256.22,21.3932]
[1732385845964,11.84581562,256.27,256.22,21.3932]
[1732385849774,11.84581562,256.23,256.22,15.0448]
[1732385850063,11.84581562,256.23,256.15,15.5338]
[1732385850064,23.69163124,256.23,256.15,15.5338]
[1732385850228,23.69163124,256.23,256.07,6.5963]
[1732385850229,11.84581562,256.16,256.07,6.5963]
[1732385850435,11.84581562,256.14,256.08,15.5338]
[1732385852939,11.84581562,256.12,256.08,15.5338]
[1732385853247,11.84581562,256.14,256.08,15.5338]
[1732385854139,11.84581562,256.16,256.08,27.37961562]
[1732385854340,11.84581562,256.16,256.08,15.5338]
[1732385855037,11.84581562,256.14,256.08,15.5338]
[1732385856339,11.84581562,256.12,256.08,15.5338]
[1732385857543,11.84581562,256.1,256.08,15.5338]
[1732385857945,11.84581562,256.12,256.08,15.5338]
[1732385858650,11.84581562,256.16,256.08,27.37961562]
[1732385858969,11.84581562,256.16,256.08,15.5338]
[1732385859142,11.84581562,256.14,256.08,15.5338]
[1732385859459,11.84581562,256.12,256.08,15.5338]
[1732385860358,11.84581562,256.1,256.03,5.16949446]
[1732385861059,11.84581562,256.1,256.02,27.84041562]
[1732385861060,11.84581562,256.1,256.02,15.9946]
[1732385861965,11.84581562,256.08,256.02,15.9946]
[1732385863854,11.84581562,256.06,256.02,15.9946]
[1732385864651,11.84581562,256.04,255.96,33.00991008]
[1732385864845,11.84581562,256.02,255.96,21.16409446]
[1732385865846,11.84581562,256.02,255.96,15.9946]
[1732385866372,11.84581562,256.0,255.96,15.9946]
[1732385867564,11.84581562,255.98,255.9,26.99211562]
[1732385868252,11.84581562,255.96,255.9,15.1463]
[1732385868582,11.84581562,255.91,255.84,15.1463]
[1732385868770,11.84581562,255.97,255.84,15.1463]
[1732385868771,11.84581562,255.89,255.84,15.1463]
[1732385869259,11.84581562,255.87,255.84,15.1463]
[1732385869459,11.84581562,255.97,255.84,15.1463]
[1732385869460,11.84581562,255.85,255.84,15.1463]
[1732385869681,11.84581562,255.85,255.78,15.1463]
[1732385870150,11.84581562,255.83,255.78,15.1463]
[1732385870349,11.84581562,255.81,255.78,15.1463]
[1732385870573,11.84581562,255.81,255.74,11.84581562]
[1732385870777,11.84581562,255.83,255.74,11.84581562]
[1732385870971,11.84581562,255.83,255.74,15.47345308]
[1732385871170,11.84581562,255.83,255.74,11.84581562]
[1732385871364,11.84581562,255.83,255.75,3.62763746]
[1732385871756,11.84581562,255.83,255.74,11.84581562]
[1732385871957,11.84581562,255.85,255.76,11.84581562]
[1732385872159,11.84581562,255.87,255.78,11.84581562]
[1732385872360,11.84581562,255.89,255.81,20.0]
[1732385872566,11.84581562,255.91,255.82,27.34351562]
[1732385872759,11.84581562,255.89,255.83,3.62763746]
[1732385873472,11.84581562,255.87,255.82,19.12533746]
[1732385874383,11.84581562,255.89,255.82,19.12533746]
[1732385875657,11.84581562,255.87,255.82,19.12533746]
[1732385876476,11.84581562,255.85,255.82,15.4977]
[1732385876679,11.84581562,255.85,255.82,19.1060874]
[1732385877079,11.84581562,255.85,255.82,15.4977]
[1732385877285,11.84581562,255.85,255.79,3.6083874]
[1732385877583,11.84581562,255.85,255.77,23.6083874]
[1732385877786,11.84581562,255.85,255.78,3.6083874]
[1732385878184,11.84581562,255.87,255.79,20.0]
[1732385878479,11.84581562,255.87,255.79,23.6083874]
[1732385878693,11.84581562,255.85,255.79,23.6083874]
[1732385879098,11.84581562,255.83,255.79,3.6083874]
[1732385879299,11.84581562,255.83,255.78,3.6083874]
[1732385879471,11.84581562,255.83,255.79,3.6083874]
[1732385879677,11.84581562,255.83,255.78,3.6083874]
[1732385879899,11.84581562,255.83,255.77,23.6083874]
[1732385880976,11.84581562,255.85,255.77,23.6083874]
[1732385882109,11.84581562,255.85,255.78,3.60151948]
[1732385882796,11.84581562,255.85,255.77,20.0]
[1732385883589,11.84581562,255.85,255.78,11.84581562]
[1732385884002,11.84581562,255.83,255.77,20.0]
[1732385885304,11.84581562,255.89,255.81,11.84581562]
[1732385885513,11.84581562,255.89,255.87,137.8]
[1732385885693,11.84581562,255.91,255.87,137.8]
[1732385885998,11.84581562,255.91,255.83,11.84581562]
[1732385886201,6.3154,255.99,255.85,11.84581562]
[1732385886395,11.84581562,255.95,255.85,11.84581562]
[1732385886576,11.84581562,255.97,255.89,11.84581562]
[1732385886774,6.1987,256.05,255.89,11.84581562]
[1732385886775,11.84581562,255.99,255.89,11.84581562]
[1732385886973,11.84581562,255.99,255.91,11.84581562]
[1732385887212,11.84581562,255.99,255.92,20.0]
[1732385887774,11.84581562,255.99,255.9,20.0]
[1732385887979,11.84581562,255.97,255.9,20.0]
[1732385888707,10.0,256.07,255.89,20.0]
[1732385888708,11.84581562,255.95,255.89,20.0]
[1732385889482,11.84581562,255.97,255.89,20.0]
[1732385890100,11.84581562,255.97,255.88,15.3973]
[1732385890804,11.84581562,256.0,255.91,11.84581562]
[1732385892795,11.84581562,256.0,255.93,11.84581562]
[1732385893608,11.84581562,256.0,255.91,11.84581562]
[1732385895218,11.84581562,255.96,255.89,23.893]
[1732385895412,11.84581562,255.93,255.89,3.893]
[1732385895920,11.84581562,255.93,255.88,15.3973]
[1732385896095,11.84581562,255.91,255.88,15.3973]
[1732385896290,11.84581562,255.91,255.83,11.84581562]
[1732385897115,11.84581562,255.87,255.82,16.5605]
[1732385897312,11.84581562,255.87,255.79,18.16811562]
[1732385897313,11.84581562,255.85,255.79,6.3223]
[1732385898085,11.84581562,255.83,255.76,16.5605]
[1732385898394,11.84581562,255.85,255.77,11.84581562]
[1732385898801,11.84581562,255.83,255.76,16.5605]
[1732385899696,11.84581562,255.83,255.77,20.0]
[1732385901131,11.84581562,255.85,255.77,20.0]
[1732385902000,11.84581562,255.89,255.81,11.84581562]
[1732385902310,11.84581562,255.91,255.83,11.84581562]
[1732385902516,11.84581562,255.91,255.84,20.0]
[1732385902717,11.84581562,255.94,255.86,11.84581562]
[1732385903097,11.84581562,255.96,255.88,11.84581562]
[1732385905099,11.84581562,255.92,255.87,20.0]
[1732385905618,11.84581562,255.92,255.85,20.0]
[1732385906208,11.84581562,255.9,255.82,11.84581562]
[1732385906729,11.84581562,255.9,255.83,20.0]
[1732385907399,11.84581562,255.92,255.84,11.84581562]
[1732385908997,11.84581562,255.94,255.86,11.84581562]
[1732385910200,11.84581562,255.94,255.87,22.1901]
[1732385910406,11.84581562,255.96,255.88,11.84581562]
[1732385912829,11.84581562,255.96,255.87,22.1901]
[1732385913018,11.84581562,255.94,255.87,22.1901]
[1732385913226,11.84581562,255.9,255.87,15.7052]
[1732385913410,11.84581562,255.88,255.87,15.7052]
[1732385913611,11.84581562,255.9,255.87,15.7052]
[1732385914546,11.84581562,255.92,255.87,15.7052]
[1732385915540,11.84581562,255.96,255.88,11.84581562]
[1732385916323,11.84581562,255.94,255.87,15.7052]
[1732385918144,11.84581562,255.92,255.87,15.7052]
[1732385918349,11.84581562,255.9,255.87,15.7052]
[1732385918724,11.84581562,255.92,255.87,15.7052]
[1732385919229,11.84581562,255.9,255.83,20.0]
[1732385919429,11.84581562,255.9,255.81,16.2142]
[1732385920131,11.84581562,255.86,255.81,16.2142]
[1732385923549,11.84581562,255.88,255.81,16.2142]
[1732385925077,11.84581562,255.9,255.82,11.84581562]
[1732385925965,11.84581562,255.92,255.83,20.0]
[1732385926640,11.84581562,255.9,255.83,20.0]
[1732385926840,11.84581562,255.88,255.82,20.0]
[1732385927431,11.84581562,255.86,255.82,20.0]
[1732385927657,11.84581562,255.86,255.81,16.2142]
[1732385928254,11.84581562,255.84,255.81,16.2142]
[1732385928450,11.84581562,255.86,255.81,16.2142]
[1732385929841,11.84581562,255.88,255.81,16.2142]
[1732385930046,11.84581562,255.9,255.82,11.84581562]
[1732385932237,11.84581562,255.9,255.83,20.0]
[1732385932646,11.84581562,255.9,255.82,11.84581562]
[1732385932949,11.84581562,255.92,255.82,11.84581562]
[1732385933146,11.84581562,255.92,255.83,20.0]
[1732385933952,11.84581562,255.92,255.84,11.84581562]
[1732385934155,11.84581562,255.9,255.82,31.84581562]
[1732385936460,11.84581562,255.92,255.84,11.84581562]
[1732385936763,11.84581562,255.94,255.85,20.0]
[1732385938356,11.84581562,255.9,255.83,20.0]
[1732385938542,11.84581562,255.86,255.82,20.0]
[1732385939242,11.84581562,255.86,255.81,16.2142]
[1732385942142,11.84581562,255.9,255.81,28.06001562]
[1732385942339,11.84581562,255.88,255.81,16.2142]
[1732385943267,11.84581562,255.86,255.82,3.667141]
[1732385943659,11.84581562,255.86,255.83,3.667141]
[1732385943858,33.776884,255.96,255.84,3.667141]
[1732385944061,33.776884,255.96,255.85,3.667141]
[1732385944274,23.776884,255.9,255.86,3.667141]
[1732385944582,23.776884,255.91,255.87,3.667141]
[1732385944761,23.776884,255.91,255.73,3.667141]
[1732385944957,23.776884,255.91,255.74,3.66827133]
[1732385944958,11.84581562,255.82,255.74,3.66827133]
[1732385945154,11.84581562,255.82,255.75,15.51408695]
[1732385945349,11.84581562,255.82,255.76,3.66827133]
[1732385945575,11.84581562,255.82,255.77,3.66827133]
[1732385945777,11.84581562,255.82,255.78,3.66827133]
[1732385945985,11.84581562,255.82,255.79,3.66827133]
[1732385946161,11.84581562,255.82,255.8,3.66827133]
[1732385946482,11.84581562,255.82,255.81,3.66827133]
[1732385946782,11.84581562,255.82,255.75,11.84581562]
[1732385946783,11.84581562,255.82,255.74,24.93298453]
[1732385946982,11.84581562,255.8,255.75,3.66743536]
[1732385947295,11.84581562,255.8,255.76,3.66743536]
[1732385947460,11.84581562,255.8,255.77,3.66743536]
[1732385947662,11.84581562,255.8,255.78,3.66743536]
[1732385947886,11.84581562,255.8,255.79,3.66743536]
[1732385948187,11.84581562,255.84,255.79,3.66743536]
[1732385948370,11.84581562,255.84,255.8,3.66743536]
[1732385948557,11.84581562,255.84,255.81,3.66743536]
[1732385948757,11.84581562,255.84,255.82,3.66743536]
[1732385948971,11.84581562,255.84,255.76,20.0]
[1732385948972,11.84581562,255.84,255.83,3.66743536]
[1732385950357,11.84581562,255.84,255.83,3.66564644]
[1732385951857,47.46851524,255.84,255.83,3.66564644]
[1732385952760,35.62269962,255.84,255.83,3.66564644]
[1732385953089,23.776884,255.83,255.69,23.66564644]
[1732385953264,23.776884,255.83,255.7,23.66564644]
[1732385953461,11.84581562,255.76,255.71,23.66564644]
[1732385953659,11.84581562,255.76,255.72,3.66564644]
[1732385953859,11.84581562,255.74,255.72,3.66564644]
[1732385954093,11.84581562,255.74,255.73,3.66564644]
[1732385954261,11.84581562,255.74,255.66,16.4246]
[1732385954468,11.84581562,255.74,255.67,3.66524651]
[1732385954857,11.84581562,255.74,255.68,3.66524651]
[1732385955069,11.84581562,255.74,255.69,3.66524651]
[1732385955281,11.84581562,255.74,255.7,3.66524651]
[1732385955480,11.84581562,255.74,255.71,3.66524651]
[1732385955791,11.84581562,255.74,255.72,3.66524651]
[1732385956101,11.84581562,255.74,255.73,3.66524651]
[1732385959086,11.84581562,255.78,255.73,3.66524651]
[1732385959278,11.84581562,255.78,255.74,3.66524651]
[1732385959583,11.84581562,255.78,255.75,3.66524651]
[1732385959792,11.84581562,255.8,255.76,3.66524651]
[1732385959968,11.84581562,255.8,255.77,3.66524651]
[1732385960284,11.84581562,255.8,255.78,3.66524651]
[1732385960464,11.84581562,255.82,255.79,3.66524651]
[1732385960670,11.84581562,255.82,255.77,16.4246]
[1732385960671,11.84581562,255.82,255.8,3.66524651]
[1732385960992,11.84581562,255.82,255.77,16.4246]
[1732385961162,11.84581562,255.82,255.81,3.66082232]
[1732385964891,11.84581562,255.82,255.81,3.6627699]
[1732385965087,35.62269962,255.82,255.81,3.6627699]
[1732385965990,35.62269962,255.82,255.65,11.84581562]
[1732385965991,23.776884,255.81,255.65,15.321]
[1732385966284,11.84581562,255.69,255.65,15.321]
[1732385966589,33.776884,255.83,255.73,125.95418438]
[1732385966789,11.84581562,255.74,255.65,15.321]
[1732385966963,11.84581562,255.71,255.65,25.13440317]
[1732385967664,11.84581562,255.71,255.66,20.0]
[1732385967965,23.776884,255.83,255.65,25.13440317]
[1732385967966,11.84581562,255.74,255.68,20.0]
[1732385969664,11.84581562,255.76,255.68,20.0]
[1732385969883,11.84581562,255.76,255.7,20.0]
[1732385970272,11.84581562,255.74,255.7,20.0]
[1732385970476,11.84581562,255.74,255.69,4.88041864]
[1732385971273,11.84581562,255.74,255.66,31.84581562]
[1732385972275,11.84581562,255.74,255.66,41.65921879]
[1732385972586,11.84581562,255.74,255.67,4.93298453]
[1732385973173,11.8458155,255.74,255.67,4.93298453]
[1732385974492,11.84581562,255.76,255.68,36.72623426]
[1732385974693,7.61151804,255.77,255.68,32.49193668]
[1732385974898,7.61151804,255.79,255.71,20.0]
[1732385975102,7.61151804,255.79,255.71,24.88041864]
[1732385975475,7.61151804,255.79,255.71,29.81340317]
[1732385975683,7.61151804,255.79,255.72,9.81340317]
[1732385975892,7.61151804,255.79,255.73,20.0]
[1732385976776,11.89060831,255.79,255.73,20.0]
[1732385977382,11.89060831,255.77,255.73,20.0]
[1732385978288,2.5562,255.93,255.81,137.8]
[1732385978498,11.89060831,255.85,255.77,20.0]
[1732385978891,11.89060831,255.83,255.77,20.0]
[1732385979394,11.89060831,255.83,255.75,20.0]
[1732385979898,11.89060831,255.83,255.75,24.93298453]
[1732385981899,11.89060831,255.81,255.75,24.93298453]
[1732385983105,11.89060831,255.83,255.76,4.93298453]
[1732385983987,23.776884,255.95,255.76,4.93298453]
[1732385983988,11.89060831,255.81,255.76,4.93298453]
[1732385984699,11.89060831,255.79,255.75,20.0]
[1732385985201,11.89060831,255.77,255.75,20.0]
[1732385986283,11.89060831,255.77,255.74,15.1266]
[1732385986491,11.89060831,255.75,255.7,4.93298453]
[1732385987587,11.89060831,255.75,255.7,24.93298453]
[1732385987986,11.89060831,255.77,255.7,24.93298453]
[1732385989509,11.89060831,255.77,255.7,29.81340317]
[1732385990077,11.89060831,255.77,255.7,41.70401148]
[1732385993791,11.89060831,255.77,255.7,29.81340317]
[1732385995602,11.89060831,255.77,255.7,9.81340317]
[1732385996206,11.89060831,255.77,255.71,20.0]
[1732385996587,11.89060831,255.75,255.71,20.0]
[1732385997095,11.89060831,255.84,255.71,20.0]
[1732385997096,11.89060831,255.73,255.71,20.0]
[1732385997300,23.776884,255.83,255.77,125.90939169]
[1732385997487,23.776884,255.83,255.7,4.93298453]
[1732385997687,11.89060831,255.72,255.7,4.93298453]
[1732385998182,11.89060831,255.72,255.69,20.0]
[1732385998388,11.89060831,255.7,255.68,15.1235]
[1732385998584,7.6153434,255.7,255.68,15.1235]
[1732385999785,23.776884,255.83,255.69,20.0]
[1732386000140,7.6153434,255.73,255.68,20.05648453]
[1732386000317,7.6153434,255.71,255.68,4.93298453]
[1732386000795,7.6153434,255.69,255.68,4.93298453]
[1732386001304,7.6153434,255.69,255.63,12.7089597]
[1732386001305,7.6153434,255.69,255.63,4.88041864]
[1732386001505,7.6153434,255.67,255.63,4.88041864]
[1732386002091,7.6153434,255.67,255.61,21.26688453]
[1732386002588,7.6153434,255.65,255.61,21.26688453]
[1732386002794,7.6153434,255.62,255.56,4.88041864]
[1732386003086,7.6153434,255.58,255.56,4.88041864]
[1732386003313,30.4613736,255.71,255.54,4.93298453]
[1732386003314,7.6153434,255.57,255.54,4.93298453]
[1732386004003,7.6153434,255.55,255.54,4.93298453]
[1732386004205,7.6153434,255.55,255.49,21.21431864]
[1732386004417,7.6153434,255.53,255.49,21.21431864]
[1732386004619,11.91442625,255.53,255.49,21.21431864]
[1732386004826,11.91442625,255.54,255.49,21.21431864]
[1732386004990,11.91442625,255.58,255.5,4.93298453]
[1732386005197,11.91442625,255.61,255.53,11.91442625]
[1732386005519,11.91442625,255.61,255.54,9.81340317]
[1732386005811,11.91442625,255.6,255.54,9.81340317]
[1732386006824,11.91442625,255.61,255.54,9.81340317]
[1732386007292,11.91442625,255.6,255.54,9.81340317]
[1732386007647,11.91442625,255.59,255.54,4.93298453]
[1732386007792,11.91442625,255.56,255.54,4.93298453]
[1732386008113,11.91442625,255.56,255.49,16.3339]
[1732386009197,11.91442625,255.54,255.49,16.3339]
[1732386009414,11.91442625,255.56,255.49,21.26688453]
[1732386010204,11.91442625,255.55,255.49,21.26688453]
[1732386010505,11.91442625,255.53,255.49,4.93298453]
[1732386011216,11.91442625,255.56,255.49,16.84741078]
[1732386011531,11.91442625,255.56,255.5,4.93298453]
[1732386012296,10.0,255.66,255.5,4.93298453]
[1732386012297,11.91442625,255.54,255.5,4.93298453]
[1732386012500,11.91442625,255.55,255.5,4.93298453]
[1732386013415,11.91442625,255.54,255.5,4.93298453]
[1732386013718,11.91442625,255.55,255.5,4.93298453]
[1732386014798,11.91442625,255.54,255.5,4.93298453]
[1732386015099,11.91442625,255.55,255.5,4.93298453]
[1732386016499,11.91442625,255.53,255.5,4.93298453]
[1732386016820,11.91442625,255.51,255.5,4.93298453]
[1732386017001,11.91442625,255.51,255.46,7.6489396]
[1732386017201,11.91442625,255.51,255.44,11.91442625]
[1732386017626,11.91442625,255.51,255.45,23.776884]
[1732386017818,11.91442625,255.49,255.44,7.69839311]
[1732386018128,11.91442625,255.49,255.43,20.87878453]